[Event "*** SCC Grand Prix: Titled Tuesday Blitz"]
[Site "Chess.com"]
[Date "2020.08.11"]
[Round "2"]
[White "Azatic"]
[Black "dretch"]
[Result "1-0"]
[WhiteElo "2532"]
[BlackElo "2786"]
[TimeControl "180+1"]
[EndTime "10:20:15 PDT"]
[Termination "Azatic won by checkmate"]

1. e4 {[%clk 0:03:00.9]} 1... e6 {[%clk 0:02:57.4]} 2. Qe2 {[%clk 0:03:00.6]}
2... d5 {[%clk 0:02:56.1]} 3. exd5 {[%clk 0:03:00.6]} 3... Qxd5 {[%clk 0:02:56]}
4. Nc3 {[%clk 0:03:01.3]} 4... Qd8 {[%clk 0:02:55.9]} 5. g3 {[%clk 0:03:01]}
5... Nc6 {[%clk 0:02:52.2]} 6. Nf3 {[%clk 0:02:58.8]} 6... Nf6 {[%clk
0:02:51.7]} 7. Bg2 {[%clk 0:02:58.7]} 7... Bc5 {[%clk 0:02:51.9]} 8. O-O {[%clk
0:02:57.6]} 8... O-O {[%clk 0:02:51]} 9. d3 {[%clk 0:02:49.9]} 9... Re8 {[%clk
0:02:48.4]} 10. Ne4 {[%clk 0:02:29]} 10... Nxe4 {[%clk 0:02:45.9]} 11. dxe4
{[%clk 0:02:29.9]} 11... e5 {[%clk 0:02:44.4]} 12. c3 {[%clk 0:02:27.8]} 12...
a5 {[%clk 0:02:42]} 13. Bg5 {[%clk 0:02:16.5]} 13... Qd6 {[%clk 0:02:35.9]} 14.
Rad1 {[%clk 0:01:54.7]} 14... Qe6 {[%clk 0:01:58.9]} 15. b3 {[%clk 0:01:48]}
15... b6 {[%clk 0:01:53.3]} 16. Rfe1 {[%clk 0:01:00.6]} 16... Ba6 {[%clk
0:01:52.6]} 17. Qd2 {[%clk 0:01:00.1]} 17... h6 {[%clk 0:01:40.1]} 18. Be3
{[%clk 0:00:56.9]} 18... Red8 {[%clk 0:01:31.7]} 19. Qc1 {[%clk 0:00:56.6]}
19... a4 {[%clk 0:01:11]} 20. Bxc5 {[%clk 0:00:40.2]} 20... Rxd1 {[%clk
0:01:00.2]} 21. Rxd1 {[%clk 0:00:34.6]} 21... bxc5 {[%clk 0:01:00.1]} 22. Rd5
{[%clk 0:00:29.8]} 22... axb3 {[%clk 0:00:27.1]} 23. axb3 {[%clk 0:00:29.6]}
23... Rb8 {[%clk 0:00:27.2]} 24. Qa3 {[%clk 0:00:24.6]} 24... Be2 {[%clk
0:00:15.1]} 25. Nd2 {[%clk 0:00:20.2]} 25... c4 {[%clk 0:00:13.5]} 26. b4 {[%clk
0:00:18.4]} 26... Bd3 {[%clk 0:00:11.6]} 27. Bf1 {[%clk 0:00:17.3]} 27... Bxf1
{[%clk 0:00:07.8]} 28. Nxf1 {[%clk 0:00:17]} 28... Ne7 {[%clk 0:00:07.5]} 29.
Rd2 {[%clk 0:00:16.1]} 29... f5 {[%clk 0:00:07.1]} 30. exf5 {[%clk 0:00:13.9]}
30... Nxf5 {[%clk 0:00:08]} 31. Qa5 {[%clk 0:00:13.7]} 31... Rc8 {[%clk
0:00:07.8]} 32. Qc5 {[%clk 0:00:13.5]} 32... Nd6 {[%clk 0:00:07.7]} 33. Ne3
{[%clk 0:00:13.2]} 33... Ne4 {[%clk 0:00:08]} 34. Qd5 {[%clk 0:00:12.2]} 34...
Qxd5 {[%clk 0:00:07.9]} 35. Rxd5 {[%clk 0:00:12.3]} 35... Nxc3 {[%clk
0:00:08.2]} 36. Rxe5 {[%clk 0:00:10.2]} 36... Rb8 {[%clk 0:00:08]} 37. Nc2
{[%clk 0:00:08.3]} 37... Rd8 {[%clk 0:00:07.7]} 38. Rc5 {[%clk 0:00:08.2]} 38...
Rd2 {[%clk 0:00:07.7]} 39. Ne3 {[%clk 0:00:08]} 39... Ne2+ {[%clk 0:00:08.1]}
40. Kf1 {[%clk 0:00:07.6]} 40... c3 {[%clk 0:00:07.9]} 41. Ke1 {[%clk 0:00:08]}
41... Ra2 {[%clk 0:00:07.7]} 42. Rxc7 {[%clk 0:00:08.1]} 42... Nd4 {[%clk
0:00:04.7]} 43. Rxc3 {[%clk 0:00:06.6]} 43... Nf3+ {[%clk 0:00:03.9]} 44. Kf1
{[%clk 0:00:06.2]} 44... Rb2 {[%clk 0:00:04]} 45. Nf5 {[%clk 0:00:04.6]} 45...
Rxb4 {[%clk 0:00:02.6]} 46. Rxf3 {[%clk 0:00:04.1]} 46... Rb1+ {[%clk
0:00:02.1]} 47. Kg2 {[%clk 0:00:04.1]} 47... Kh7 {[%clk 0:00:02.6]} 48. Ne3
{[%clk 0:00:04.7]} 48... Rb3 {[%clk 0:00:02.6]} 49. h4 {[%clk 0:00:05.2]} 49...
Rb5 {[%clk 0:00:03.1]} 50. Ng4 {[%clk 0:00:05.5]} 50... Rh5 {[%clk 0:00:02.8]}
51. Nh2 {[%clk 0:00:05.9]} 51... Rc5 {[%clk 0:00:03.3]} 52. Nf1 {[%clk
0:00:06.4]} 52... Rc6 {[%clk 0:00:03.9]} 53. Ne3 {[%clk 0:00:06.7]} 53... Rc1
{[%clk 0:00:04.4]} 54. Rf4 {[%clk 0:00:07.1]} 54... Rc7 {[%clk 0:00:05]} 55. Rd4
{[%clk 0:00:07.5]} 55... Ra7 {[%clk 0:00:05.6]} 56. Rd5 {[%clk 0:00:08]} 56...
Re7 {[%clk 0:00:06.1]} 57. h5 {[%clk 0:00:08.5]} 57... Re4 {[%clk 0:00:06.3]}
58. Kf3 {[%clk 0:00:08.6]} 58... Re7 {[%clk 0:00:06.6]} 59. Nf5 {[%clk
0:00:08.8]} 59... Rf7 {[%clk 0:00:06.9]} 60. Kg4 {[%clk 0:00:08.7]} 60... Rc7
{[%clk 0:00:07]} 61. f4 {[%clk 0:00:09]} 61... Rb7 {[%clk 0:00:07]} 62. Re5
{[%clk 0:00:09.3]} 62... Rf7 {[%clk 0:00:06.5]} 63. Re7 {[%clk 0:00:09]} 63...
Rf6 {[%clk 0:00:06.7]} 64. Rxg7+ {[%clk 0:00:09]} 64... Kh8 {[%clk 0:00:07.3]}
65. Rg6 {[%clk 0:00:09.5]} 65... Rf7 {[%clk 0:00:06.5]} 66. Rxh6+ {[%clk
0:00:09.8]} 66... Kg8 {[%clk 0:00:07]} 67. Rg6+ {[%clk 0:00:10.2]} 67... Kh8
{[%clk 0:00:07.3]} 68. h6 {[%clk 0:00:10]} 68... Rf8 {[%clk 0:00:06]} 69. Kg5
{[%clk 0:00:08.2]} 69... Rf7 {[%clk 0:00:06.1]} 70. Nh4 {[%clk 0:00:07.9]} 70...
Rf8 {[%clk 0:00:05.4]} 71. Re6 {[%clk 0:00:07.9]} 71... Kh7 {[%clk 0:00:05.2]}
72. Re7+ {[%clk 0:00:07.9]} 72... Kh8 {[%clk 0:00:04.8]} 73. Ng6+ {[%clk
0:00:07.7]} 73... Kg8 {[%clk 0:00:05.2]} 74. Rg7# {[%clk 0:00:08.3]} 1-0

[Event "*** SCC Grand Prix: Titled Tuesday Blitz"]
[Site "Chess.com"]
[Date "2020.08.11"]
[Round "2"]
[White "JoliyRoger"]
[Black "Andreikka"]
[Result "0-1"]
[WhiteElo "2325"]
[BlackElo "2830"]
[TimeControl "180+1"]
[EndTime "10:20:18 PDT"]
[Termination "Andreikka won by resignation"]

1. Nf3 {[%clk 0:03:00.9]} 1... d5 {[%clk 0:02:53.8]} 2. d4 {[%clk 0:02:59.7]}
2... Nf6 {[%clk 0:02:53.1]} 3. c4 {[%clk 0:03:00.2]} 3... e6 {[%clk 0:02:53.1]}
4. cxd5 {[%clk 0:03:00.5]} 4... exd5 {[%clk 0:02:53.1]} 5. Nc3 {[%clk
0:03:01.4]} 5... c6 {[%clk 0:02:52.2]} 6. Bg5 {[%clk 0:03:01.9]} 6... Be7 {[%clk
0:02:49.7]} 7. Bxf6 {[%clk 0:03:01.8]} 7... Bxf6 {[%clk 0:02:49.5]} 8. e3 {[%clk
0:03:02.7]} 8... O-O {[%clk 0:02:49.5]} 9. Bd3 {[%clk 0:03:03.6]} 9... Nd7
{[%clk 0:02:48]} 10. Qc2 {[%clk 0:03:03.5]} 10... h6 {[%clk 0:02:28.8]} 11. O-O
{[%clk 0:03:03.1]} 11... Nb6 {[%clk 0:02:26.8]} 12. h3 {[%clk 0:03:02.3]} 12...
Re8 {[%clk 0:02:26.5]} 13. b4 {[%clk 0:03:02.7]} 13... a6 {[%clk 0:02:24.7]} 14.
a4 {[%clk 0:03:02.1]} 14... Be6 {[%clk 0:02:24.2]} 15. Rfb1 {[%clk 0:02:45.8]}
15... Qd6 {[%clk 0:02:20.5]} 16. Nd2 {[%clk 0:02:08.1]} 16... Rec8 {[%clk
0:02:16.9]} 17. a5 {[%clk 0:01:57.2]} 17... Nd7 {[%clk 0:02:16]} 18. Na4 {[%clk
0:01:57.2]} 18... Re8 {[%clk 0:02:10.8]} 19. Nb3 {[%clk 0:01:50.4]} 19... Nf8
{[%clk 0:02:09.3]} 20. Nbc5 {[%clk 0:01:45.9]} 20... Rab8 {[%clk 0:02:08.6]} 21.
Nc3 {[%clk 0:01:41.6]} 21... g6 {[%clk 0:02:06.6]} 22. Re1 {[%clk 0:01:39.7]}
22... Re7 {[%clk 0:02:03.1]} 23. Rad1 {[%clk 0:01:39.5]} 23... Rbe8 {[%clk
0:02:03.5]} 24. Ne2 {[%clk 0:01:37.7]} 24... Bc8 {[%clk 0:02:03.2]} 25. Nf4
{[%clk 0:01:32.8]} 25... Bg7 {[%clk 0:02:03.6]} 26. Ne2 {[%clk 0:01:30.8]} 26...
h5 {[%clk 0:02:04]} 27. Nf4 {[%clk 0:01:30.7]} 27... Nh7 {[%clk 0:02:04.4]} 28.
Qd2 {[%clk 0:01:11.3]} 28... Ng5 {[%clk 0:02:00.8]} 29. Qc2 {[%clk 0:01:08.7]}
29... Bh6 {[%clk 0:01:55.3]} 30. Qd2 {[%clk 0:00:40.7]} 30... Nh7 {[%clk
0:01:53.4]} 31. Ne2 {[%clk 0:00:25.8]} 31... Nf6 {[%clk 0:01:53.4]} 32. Qc2
{[%clk 0:00:23.4]} 32... h4 {[%clk 0:01:51.5]} 33. Rc1 {[%clk 0:00:20.1]} 33...
Nh5 {[%clk 0:01:13.8]} 34. Rcd1 {[%clk 0:00:19.7]} 34... f5 {[%clk 0:01:08.5]}
35. Nc3 {[%clk 0:00:16.8]} 35... Nf6 {[%clk 0:01:01.4]} 36. Bf1 {[%clk
0:00:16.3]} 36... Kg7 {[%clk 0:01:00.4]} 37. Nd3 {[%clk 0:00:16.2]} 37... g5
{[%clk 0:00:44.8]} 38. Ne5 {[%clk 0:00:15]} 38... Qxb4 {[%clk 0:00:44.4]} 39.
Rb1 {[%clk 0:00:10.1]} 39... Qxa5 {[%clk 0:00:43.8]} 40. Na4 {[%clk 0:00:08.2]}
40... Qc7 {[%clk 0:00:39.9]} 41. Nc3 {[%clk 0:00:07.6]} 41... g4 {[%clk
0:00:37.5]} 42. f4 {[%clk 0:00:06.1]} 42... gxf3 {[%clk 0:00:35.5]} 43. gxf3
{[%clk 0:00:06.5]} 43... Rxe5 {[%clk 0:00:36]} 44. dxe5 {[%clk 0:00:06.3]} 44...
Qxe5 {[%clk 0:00:36.7]} 45. f4 {[%clk 0:00:06.2]} 45... Qd6 {[%clk 0:00:34.9]}
46. Kh1 {[%clk 0:00:03.7]} 46... Kf7 {[%clk 0:00:31.9]} 47. Bd3 {[%clk
0:00:03.5]} 47... Nh5 {[%clk 0:00:31.3]} 48. Qf2 {[%clk 0:00:01.5]} 48... Ng3+
{[%clk 0:00:31.6]} 49. Kh2 {[%clk 0:00:02.1]} 49... Bg7 {[%clk 0:00:32.3]} 50.
Ne2 {[%clk 0:00:02]} 50... Bf6 {[%clk 0:00:32.8]} 51. Nxg3 {[%clk 0:00:02.1]}
51... hxg3+ {[%clk 0:00:33.7]} 52. Qxg3 {[%clk 0:00:02.7]} 52... Rg8 {[%clk
0:00:34.6]} 53. Qf2 {[%clk 0:00:02.4]} 53... Qe7 {[%clk 0:00:34.6]} 54. Rg1
{[%clk 0:00:02.9]} 54... Re8 {[%clk 0:00:35.1]} 55. Rg3 {[%clk 0:00:02.6]} 55...
Bh4 {[%clk 0:00:35.7]} 56. Rbg1 {[%clk 0:00:02.9]} 56... Bxg3+ {[%clk
0:00:36.1]} 57. Qxg3 {[%clk 0:00:03.8]} 57... Qf6 {[%clk 0:00:36.8]} 58. Qf3
{[%clk 0:00:03.5]} 58... Rh8 {[%clk 0:00:35.9]} 59. Rg5 {[%clk 0:00:03.3]} 59...
Be6 {[%clk 0:00:34.7]} 60. Qg3 {[%clk 0:00:03.5]} 60... a5 {[%clk 0:00:32.4]}
61. Be2 {[%clk 0:00:03.2]} 61... Qb2 {[%clk 0:00:22.4]} 62. Qg2 {[%clk
0:00:03.3]} 62... Ke7 {[%clk 0:00:22.3]} 63. Bh5 {[%clk 0:00:03.6]} 63... Qxg2+
{[%clk 0:00:21.6]} 64. Kxg2 {[%clk 0:00:04.1]} 64... a4 {[%clk 0:00:20.8]} 65.
Rg7+ {[%clk 0:00:04.6]} 65... Kd6 {[%clk 0:00:20.9]} 66. Be2 {[%clk 0:00:04.6]}
66... b5 {[%clk 0:00:21.4]} 67. Ra7 {[%clk 0:00:05]} 67... Kc5 {[%clk
0:00:18.3]} 68. Kf2 {[%clk 0:00:05]} 68... Kb6 {[%clk 0:00:18.8]} 69. Re7 {[%clk
0:00:04.6]} 69... a3 {[%clk 0:00:19.2]} 70. Rxe6 {[%clk 0:00:04]} 70... a2
{[%clk 0:00:19.2]} 71. Bxb5 {[%clk 0:00:04.9]} 71... Kxb5 {[%clk 0:00:19.2]} 72.
Re7 {[%clk 0:00:05.3]} 72... a1=Q {[%clk 0:00:19.6]} 0-1

[Event "*** SCC Grand Prix: Titled Tuesday Blitz"]
[Site "Chess.com"]
[Date "2020.08.11"]
[Round "2"]
[White "2007checkmate"]
[Black "manuellarrea"]
[Result "1/2-1/2"]
[WhiteElo "2427"]
[BlackElo "2223"]
[TimeControl "180+1"]
[EndTime "10:20:22 PDT"]
[Termination "Game drawn - timeout vs insufficient material"]

1. Nc3 {[%clk 0:03:00.9]} 1... c5 {[%clk 0:02:58.8]} 2. Nf3 {[%clk 0:03:00.8]}
2... Nc6 {[%clk 0:02:59.1]} 3. d4 {[%clk 0:03:00.8]} 3... cxd4 {[%clk
0:02:58.2]} 4. Nxd4 {[%clk 0:03:01.7]} 4... Nf6 {[%clk 0:02:56.7]} 5. g3 {[%clk
0:03:00.5]} 5... d5 {[%clk 0:02:52.3]} 6. Bg2 {[%clk 0:03:00]} 6... e5 {[%clk
0:02:51.8]} 7. Nb3 {[%clk 0:02:57]} 7... Bb4 {[%clk 0:02:49.4]} 8. Bd2 {[%clk
0:02:53.9]} 8... d4 {[%clk 0:02:45.6]} 9. Ne4 {[%clk 0:02:52.1]} 9... Bxd2+
{[%clk 0:02:38.2]} 10. Qxd2 {[%clk 0:02:50.7]} 10... O-O {[%clk 0:02:31.3]} 11.
O-O {[%clk 0:02:50.4]} 11... Nxe4 {[%clk 0:02:30.2]} 12. Bxe4 {[%clk 0:02:51.3]}
12... Bh3 {[%clk 0:02:29.6]} 13. Rfe1 {[%clk 0:02:49.4]} 13... Rc8 {[%clk
0:02:28.8]} 14. Rad1 {[%clk 0:02:46.1]} 14... f5 {[%clk 0:02:18.1]} 15. Bh1
{[%clk 0:02:45.3]} 15... Qb6 {[%clk 0:02:09.8]} 16. e3 {[%clk 0:02:40.6]} 16...
dxe3 {[%clk 0:02:04.1]} 17. Qxe3 {[%clk 0:02:41.5]} 17... Qxe3 {[%clk
0:02:02.1]} 18. Rxe3 {[%clk 0:02:42.4]} 18... e4 {[%clk 0:02:00]} 19. f3 {[%clk
0:02:40.6]} 19... Rfd8 {[%clk 0:01:51.8]} 20. Rde1 {[%clk 0:02:35.7]} 20... Nb4
{[%clk 0:01:46.9]} 21. R3e2 {[%clk 0:02:02.1]} 21... Rxc2 {[%clk 0:01:30.3]} 22.
Rxc2 {[%clk 0:01:55.7]} 22... Nxc2 {[%clk 0:01:29.2]} 23. Rc1 {[%clk 0:01:56.6]}
23... e3 {[%clk 0:01:22.7]} 24. f4 {[%clk 0:01:41.3]} 24... e2 {[%clk
0:01:16.6]} 25. Kf2 {[%clk 0:01:37.5]} 25... e1=Q+ {[%clk 0:01:10.6]} 26. Rxe1
{[%clk 0:01:37.1]} 26... Nxe1 {[%clk 0:01:10.3]} 27. Kxe1 {[%clk 0:01:38]} 27...
Bg4 {[%clk 0:01:07.8]} 28. Bxb7 {[%clk 0:01:25.1]} 28... Rd1+ {[%clk 0:01:06.4]}
29. Kf2 {[%clk 0:01:25.8]} 29... Rb1 {[%clk 0:01:04.6]} 30. Nc5 {[%clk
0:01:15.3]} 30... Rxb2+ {[%clk 0:01:03.7]} 31. Kg1 {[%clk 0:01:13.6]} 31... Kf8
{[%clk 0:01:00.8]} 32. a4 {[%clk 0:01:11.2]} 32... Ke7 {[%clk 0:00:56.1]} 33.
Ba6 {[%clk 0:01:07.9]} 33... Kd6 {[%clk 0:00:44.2]} 34. Nd3 {[%clk 0:01:08.2]}
34... Rd2 {[%clk 0:00:40.4]} 35. Ne5 {[%clk 0:01:08.1]} 35... Kc5 {[%clk
0:00:28.8]} 36. Bc8 {[%clk 0:01:04]} 36... Bh3 {[%clk 0:00:22.4]} 37. a5 {[%clk
0:00:57.2]} 37... Kb4 {[%clk 0:00:17.2]} 38. a6 {[%clk 0:00:56.6]} 38... Rc2
{[%clk 0:00:15.9]} 39. Bb7 {[%clk 0:00:55.2]} 39... Kc5 {[%clk 0:00:14.1]} 40.
Nd3+ {[%clk 0:00:50.5]} 40... Kd4 {[%clk 0:00:13.1]} 41. Nb4 {[%clk 0:00:45.3]}
41... Rb2 {[%clk 0:00:11.1]} 42. Nd5 {[%clk 0:00:41.1]} 42... Rb5 {[%clk
0:00:08.7]} 43. Nc7 {[%clk 0:00:37.4]} 43... Rb2 {[%clk 0:00:08.1]} 44. Nd5
{[%clk 0:00:34.9]} 44... Bg2 {[%clk 0:00:07.5]} 45. Ne7 {[%clk 0:00:11.9]} 45...
Bxb7 {[%clk 0:00:06.8]} 46. Nxf5+ {[%clk 0:00:12.1]} 46... Kc5 {[%clk
0:00:06.1]} 47. axb7 {[%clk 0:00:11.9]} 47... Rxb7 {[%clk 0:00:05.6]} 48. Kf2
{[%clk 0:00:11.5]} 48... a5 {[%clk 0:00:05.4]} 49. Ne3 {[%clk 0:00:11.4]} 49...
a4 {[%clk 0:00:04.9]} 50. Ke2 {[%clk 0:00:11.6]} 50... a3 {[%clk 0:00:04.1]} 51.
Kd3 {[%clk 0:00:12.3]} 51... a2 {[%clk 0:00:03.3]} 52. Nc2 {[%clk 0:00:13.2]}
52... Rb3+ {[%clk 0:00:02.2]} 53. Kd2 {[%clk 0:00:12.6]} 53... Rb2 {[%clk
0:00:02.5]} 54. f5 {[%clk 0:00:12.9]} 54... Rxc2+ {[%clk 0:00:02.8]} 55. Kxc2
{[%clk 0:00:13.7]} 55... a1=Q {[%clk 0:00:02.7]} 56. Kd3 {[%clk 0:00:14.6]}
56... Qf6 {[%clk 0:00:03]} 57. Ke4 {[%clk 0:00:15.5]} 57... g6 {[%clk
0:00:03.2]} 58. g4 {[%clk 0:00:15.1]} 58... gxf5+ {[%clk 0:00:03.3]} 59. gxf5
{[%clk 0:00:16]} 59... Kd6 {[%clk 0:00:02.7]} 60. Kf4 {[%clk 0:00:15.9]} 60...
Qe5+ {[%clk 0:00:03]} 61. Kg4 {[%clk 0:00:16.8]} 61... Qxh2 {[%clk 0:00:02.7]}
62. Kg5 {[%clk 0:00:17.7]} 62... Qe5 {[%clk 0:00:02.8]} 63. Kh6 {[%clk
0:00:17.7]} 63... Qxf5 {[%clk 0:00:01.7]} 64. Kg7 {[%clk 0:00:18.6]} 64... Qe6
{[%clk 0:00:01.8]} 65. Kh8 {[%clk 0:00:19.5]} 65... Kd7 {[%clk 0:00:02.5]} 66.
Kg7 {[%clk 0:00:20.4]} 66... Kd6 {[%clk 0:00:02.8]} 67. Kh8 {[%clk 0:00:21.3]}
67... Kc7 {[%clk 0:00:03.4]} 68. Kg7 {[%clk 0:00:22.2]} 68... Kd8 {[%clk
0:00:03.6]} 69. Kh8 {[%clk 0:00:23.1]} 69... Ke7 {[%clk 0:00:03.6]} 70. Kg7
{[%clk 0:00:24]} 70... h5 {[%clk 0:00:03.3]} 71. Kh8 {[%clk 0:00:24.9]} 71... h4
{[%clk 0:00:03.1]} 72. Kg7 {[%clk 0:00:25.8]} 72... h3 {[%clk 0:00:03.4]} 73.
Kh8 {[%clk 0:00:26.6]} 73... h2 {[%clk 0:00:04.3]} 74. Kg7 {[%clk 0:00:27]}
74... Qg4+ {[%clk 0:00:01.3]} 75. Kh7 {[%clk 0:00:27.3]} 1/2-1/2

[Event "*** SCC Grand Prix: Titled Tuesday Blitz"]
[Site "Chess.com"]
[Date "2020.08.11"]
[Round "2"]
[White "AlexSuv"]
[Black "Gareth-Bale11"]
[Result "0-1"]
[WhiteElo "2511"]
[BlackElo "2782"]
[TimeControl "180+1"]
[EndTime "10:20:25 PDT"]
[Termination "Gareth-Bale11 won by resignation"]

1. d4 {[%clk 0:02:55.3]} 1... g6 {[%clk 0:02:47.1]} 2. c4 {[%clk 0:02:54.8]}
2... Bg7 {[%clk 0:02:47.6]} 3. Nf3 {[%clk 0:02:54.6]} 3... d6 {[%clk 0:02:47]}
4. Nc3 {[%clk 0:02:53.8]} 4... Nd7 {[%clk 0:02:46.9]} 5. e4 {[%clk 0:02:53.5]}
5... e5 {[%clk 0:02:47.1]} 6. Be2 {[%clk 0:02:51.6]} 6... Ne7 {[%clk 0:02:47.1]}
7. O-O {[%clk 0:02:49.6]} 7... O-O {[%clk 0:02:47.1]} 8. Re1 {[%clk 0:02:34.5]}
8... a6 {[%clk 0:02:30.4]} 9. Bf1 {[%clk 0:02:24.1]} 9... c6 {[%clk 0:02:21.9]}
10. Rb1 {[%clk 0:02:18.8]} 10... Qc7 {[%clk 0:02:16.6]} 11. b3 {[%clk
0:02:16.9]} 11... b5 {[%clk 0:02:15.9]} 12. cxb5 {[%clk 0:02:11.4]} 12... cxb5
{[%clk 0:02:10.2]} 13. Bb2 {[%clk 0:02:07.5]} 13... Bb7 {[%clk 0:02:10.5]} 14.
Rc1 {[%clk 0:02:07]} 14... Qb6 {[%clk 0:02:04.1]} 15. dxe5 {[%clk 0:02:03.8]}
15... Nxe5 {[%clk 0:02:05]} 16. Nxe5 {[%clk 0:01:48.9]} 16... dxe5 {[%clk
0:01:58.6]} 17. Qe2 {[%clk 0:01:39.3]} 17... Rfd8 {[%clk 0:01:45.6]} 18. Red1
{[%clk 0:01:39.3]} 18... h5 {[%clk 0:01:45.3]} 19. g3 {[%clk 0:01:36.4]} 19...
h4 {[%clk 0:01:43.2]} 20. Bg2 {[%clk 0:01:36.5]} 20... Bh6 {[%clk 0:01:38.3]}
21. Rxd8+ {[%clk 0:01:33.3]} 21... Rxd8 {[%clk 0:01:39.2]} 22. Rd1 {[%clk
0:01:33.9]} 22... Rxd1+ {[%clk 0:01:37.4]} 23. Qxd1 {[%clk 0:01:34.8]} 23... Bg5
{[%clk 0:01:27]} 24. Nd5 {[%clk 0:01:28.6]} 24... Nxd5 {[%clk 0:01:23.4]} 25.
exd5 {[%clk 0:01:29.5]} 25... Qd6 {[%clk 0:01:23.1]} 26. Qg4 {[%clk 0:01:19.1]}
26... Be7 {[%clk 0:01:14]} 27. Qe4 {[%clk 0:01:14.5]} 27... hxg3 {[%clk
0:01:12.6]} 28. hxg3 {[%clk 0:01:09.5]} 28... Bf6 {[%clk 0:01:12.6]} 29. Bf3
{[%clk 0:00:59.5]} 29... Kg7 {[%clk 0:01:12]} 30. Kg2 {[%clk 0:00:59.4]} 30...
Bc8 {[%clk 0:01:11]} 31. Qd3 {[%clk 0:00:45.6]} 31... b4 {[%clk 0:00:57.8]} 32.
Qc4 {[%clk 0:00:38.8]} 32... Bd7 {[%clk 0:00:57.7]} 33. Qd3 {[%clk 0:00:30.9]}
33... Bb5 {[%clk 0:00:57.2]} 34. Qc2 {[%clk 0:00:30.6]} 34... Qd7 {[%clk
0:00:49.5]} 35. Bc1 {[%clk 0:00:30.1]} 35... a5 {[%clk 0:00:44.4]} 36. Bd2
{[%clk 0:00:27.9]} 36... Ba6 {[%clk 0:00:41.8]} 37. Qc5 {[%clk 0:00:27.7]} 37...
Bd3 {[%clk 0:00:37.7]} 38. Qe3 {[%clk 0:00:24.5]} 38... Bb1 {[%clk 0:00:36.8]}
39. Qe2 {[%clk 0:00:17.3]} 39... Qe7 {[%clk 0:00:27.3]} 40. Be3 {[%clk 0:00:15]}
40... e4 {[%clk 0:00:26.2]} 41. Bg4 {[%clk 0:00:15.6]} 41... Bd3 {[%clk
0:00:24.9]} 42. Qd2 {[%clk 0:00:15.3]} 42... Bc3 {[%clk 0:00:23]} 43. Qd1 {[%clk
0:00:14.9]} 43... Qe5 {[%clk 0:00:21.2]} 44. Qh1 {[%clk 0:00:13.2]} 44... Qxd5
{[%clk 0:00:19.4]} 45. Qh6+ {[%clk 0:00:13.3]} 45... Kg8 {[%clk 0:00:19.9]} 46.
Qf4 {[%clk 0:00:14.2]} 46... Qe5 {[%clk 0:00:19.4]} 47. Qxe5 {[%clk 0:00:13]}
47... Bxe5 {[%clk 0:00:19.3]} 48. Bb6 {[%clk 0:00:13.9]} 48... Bb1 {[%clk
0:00:17.9]} 49. Bxa5 {[%clk 0:00:13.8]} 49... Bd6 {[%clk 0:00:18.5]} 50. Bd1
{[%clk 0:00:11.7]} 50... f5 {[%clk 0:00:16.8]} 51. g4 {[%clk 0:00:10]} 51... f4
{[%clk 0:00:15.4]} 52. Bb6 {[%clk 0:00:10.1]} 52... f3+ {[%clk 0:00:14.6]} 53.
Kg1 {[%clk 0:00:09.3]} 53... Kf7 {[%clk 0:00:14.1]} 54. Be3 {[%clk 0:00:08]}
54... Ke6 {[%clk 0:00:14.4]} 55. Kf1 {[%clk 0:00:08.3]} 55... Kd5 {[%clk
0:00:14]} 56. Ke1 {[%clk 0:00:08.8]} 56... Be5 {[%clk 0:00:13.8]} 57. Kd2 {[%clk
0:00:09]} 57... Bc3+ {[%clk 0:00:12.5]} 58. Kc1 {[%clk 0:00:09.3]} 58... Bd3
{[%clk 0:00:11.8]} 59. Bc2 {[%clk 0:00:08.7]} 59... Bf1 {[%clk 0:00:10.2]} 60.
Bd1 {[%clk 0:00:07.9]} 60... Bh3 {[%clk 0:00:10]} 61. g5 {[%clk 0:00:07.9]}
61... Bf1 {[%clk 0:00:10.6]} 62. Bc2 {[%clk 0:00:08.3]} 62... Ke5 {[%clk
0:00:09.9]} 63. Bd1 {[%clk 0:00:08.8]} 63... Kf5 {[%clk 0:00:09.9]} 64. Bc2
{[%clk 0:00:09.4]} 64... Bb5 {[%clk 0:00:09.7]} 65. Bb1 {[%clk 0:00:09.7]} 65...
Be5 {[%clk 0:00:09.9]} 66. Bc2 {[%clk 0:00:10.1]} 66... Bd6 {[%clk 0:00:09.4]}
67. Bb1 {[%clk 0:00:09.9]} 67... Bc6 {[%clk 0:00:09.7]} 68. Bc2 {[%clk
0:00:10.1]} 68... Be7 {[%clk 0:00:09.9]} 69. Kb2 {[%clk 0:00:10.4]} 69... Bxg5
{[%clk 0:00:10.2]} 70. Bxg5 {[%clk 0:00:09.5]} 70... Kxg5 {[%clk 0:00:11.1]} 71.
a3 {[%clk 0:00:09.7]} 71... bxa3+ {[%clk 0:00:12]} 72. Kxa3 {[%clk 0:00:10.6]}
72... Kf4 {[%clk 0:00:12.6]} 73. Kb4 {[%clk 0:00:10.5]} 73... g5 {[%clk
0:00:13.1]} 74. Kc5 {[%clk 0:00:10.5]} 74... Ba8 {[%clk 0:00:13.4]} 75. Kd4
{[%clk 0:00:10.9]} 75... g4 {[%clk 0:00:13.7]} 76. b4 {[%clk 0:00:10.7]} 76...
g3 {[%clk 0:00:12.9]} 77. fxg3+ {[%clk 0:00:11.6]} 77... Kxg3 {[%clk 0:00:13.8]}
78. Ke3 {[%clk 0:00:12.4]} 78... f2 {[%clk 0:00:14.1]} 79. b5 {[%clk 0:00:11]}
0-1